[Event "Titled Tuesday Blitz February 15 Early 2022"]
[White "Firat, Burak"]
[Black "Dubov, Daniil"]
[WhiteFideId "6305881"]
[BlackFideId "24126055"]
[WhiteElo "2419"]
[BlackElo "2791"]
[Result "1/2-1/2"]
[Round "05"]
[TimeControl "180+1"]
[Date "2022.02.15"]
[WhiteClock "0:00:12"]
[BlackClock "0:00:08"]

1. Nf3 {[%clk 0:03:00]}  Nf6 {[%clk 0:02:58]} 2. c4 {[%clk 0:03:00]}  g6 {[%clk 0:02:56]} 3. g3 {[%clk 0:03:00]}  b6 {[%clk 0:02:55]} 4. Bg2 {[%clk 0:03:01]}  Bb7 {[%clk 0:02:55]} 5. O-O {[%clk 0:02:59]}  c5 {[%clk 0:02:55]} 6. b3 {[%clk 0:02:58]}  Bg7 {[%clk 0:02:54]} 7. Bb2 {[%clk 0:02:58]}  O-O {[%clk 0:02:55]} 8. e3 {[%clk 0:02:58]}  d5 {[%clk 0:02:53]} 9. cxd5 {[%clk 0:02:58]}  Na6 {[%clk 0:02:53]} 10. Qe2 {[%clk 0:02:52]}  Nb4 {[%clk 0:02:48]} 11. Na3 {[%clk 0:02:38]}  Nbxd5 {[%clk 0:02:36]} 12. Nc4 {[%clk 0:02:32]}  Rc8 {[%clk 0:02:34]} 13. d3 {[%clk 0:02:28]}  b5 {[%clk 0:02:23]} 14. Nce5 {[%clk 0:02:27]}  b4 {[%clk 0:02:22]} 15. Rac1 {[%clk 0:02:24]}  Nc3 {[%clk 0:02:19]} 16. Bxc3 {[%clk 0:02:19]}  bxc3 {[%clk 0:02:20]} 17. Rxc3 {[%clk 0:02:19]}  Ng4 {[%clk 0:02:03]} 18. d4 {[%clk 0:02:13]}  cxd4 {[%clk 0:02:02]} 19. Rxc8 {[%clk 0:02:05]}  Bxc8 {[%clk 0:01:59]} 20. exd4 {[%clk 0:02:03]}  Nxe5 {[%clk 0:01:53]} 21. dxe5 {[%clk 0:02:04]}  Qb6 {[%clk 0:01:52]} 22. Rc1 {[%clk 0:01:51]}  Bh6 {[%clk 0:01:35]} 23. Rc3 {[%clk 0:01:46]}  Ba6 {[%clk 0:01:34]} 24. Qc2 {[%clk 0:01:42]}  Rd8 {[%clk 0:01:32]} 25. h4 {[%clk 0:01:41]}  Bb7 {[%clk 0:01:29]} 26. Ng5 {[%clk 0:01:37]}  Bxg2 {[%clk 0:01:17]} 27. Kxg2 {[%clk 0:01:38]}  Bxg5 {[%clk 0:01:16]} 28. hxg5 {[%clk 0:01:38]}  Qd4 {[%clk 0:01:14]} 29. Re3 {[%clk 0:01:33]}  Qd5+ {[%clk 0:01:12]} 30. Qe4 {[%clk 0:01:31]}  Qe6 {[%clk 0:01:11]} 31. Re2 {[%clk 0:01:09]}  Rd5 {[%clk 0:01:06]} 32. Qc4 {[%clk 0:00:58]}  Kg7 {[%clk 0:01:01]} 33. a3 {[%clk 0:00:55]}  a5 {[%clk 0:00:57]} 34. b4 {[%clk 0:00:53]}  axb4 {[%clk 0:00:57]} 35. axb4 {[%clk 0:00:54]}  Qd7 {[%clk 0:00:56]} 36. e6 {[%clk 0:00:53]}  fxe6 {[%clk 0:00:54]} 37. Qe4 {[%clk 0:00:52]}  Kf7 {[%clk 0:00:48]} 38. Qh4 {[%clk 0:00:46]}  Kg7 {[%clk 0:00:43]} 39. Qe4 {[%clk 0:00:44]}  Rxg5 {[%clk 0:00:20]} 40. Qxe6 {[%clk 0:00:39]}  Qb7+ {[%clk 0:00:20]} 41. Qe4 {[%clk 0:00:36]}  Rb5 {[%clk 0:00:17]} 42. Qxb7 {[%clk 0:00:33]}  Rxb7 {[%clk 0:00:18]} 43. Rb2 {[%clk 0:00:28]}  Kf6 {[%clk 0:00:18]} 44. Kf3 {[%clk 0:00:29]}  Ke5 {[%clk 0:00:18]} 45. Ke3 {[%clk 0:00:29]}  Kd5 {[%clk 0:00:18]} 46. Kd3 {[%clk 0:00:29]}  e5 {[%clk 0:00:17]} 47. Kc3 {[%clk 0:00:27]}  h5 {[%clk 0:00:17]} 48. Rd2+ {[%clk 0:00:26]}  Ke4 {[%clk 0:00:17]} 49. Kc4 {[%clk 0:00:25]}  Kf3 {[%clk 0:00:16]} 50. b5 {[%clk 0:00:25]}  e4 {[%clk 0:00:16]} 51. Kc5 {[%clk 0:00:24]}  g5 {[%clk 0:00:16]} 52. Kc6 {[%clk 0:00:20]}  Rb8 {[%clk 0:00:13]} 53. b6 {[%clk 0:00:19]}  h4 {[%clk 0:00:13]} 54. gxh4 {[%clk 0:00:19]}  gxh4 {[%clk 0:00:12]} 55. Rd7 {[%clk 0:00:17]}  Kxf2 {[%clk 0:00:10]} 56. Rf7+ {[%clk 0:00:17]}  Kg3 {[%clk 0:00:10]} 57. Rg7+ {[%clk 0:00:17]}  Kf3 {[%clk 0:00:10]} 58. Rh7 {[%clk 0:00:17]}  Kg3 {[%clk 0:00:10]} 59. Rg7+ {[%clk 0:00:17]}  Kf2 {[%clk 0:00:10]} 60. Rf7+ {[%clk 0:00:17]}  Kg2 {[%clk 0:00:09]} 61. Rg7+ {[%clk 0:00:17]}  Kf3 {[%clk 0:00:09]} 62. Rf7+ {[%clk 0:00:18]}  Kg4 {[%clk 0:00:09]} 63. Rg7+ {[%clk 0:00:18]}  Kf4 {[%clk 0:00:09]} 64. Rf7+ {[%clk 0:00:18]}  Kg5 {[%clk 0:00:09]} 65. Rg7+ {[%clk 0:00:17]}  Kf5 {[%clk 0:00:09]} 66. Rf7+ {[%clk 0:00:17]}  Ke5 {[%clk 0:00:06]} 67. Re7+ {[%clk 0:00:17]}  Kd4 {[%clk 0:00:06]} 68. Rh7 {[%clk 0:00:15]}  e3 {[%clk 0:00:06]} 69. Rxh4+ {[%clk 0:00:15]}  Kd3 {[%clk 0:00:07]} 70. Rh3 {[%clk 0:00:13]}  Kd2 {[%clk 0:00:07]} 71. Kc7 {[%clk 0:00:13]}  Rxb6 {[%clk 0:00:06]} 72. Kxb6 {[%clk 0:00:12]}  e2 {[%clk 0:00:07]} 73. Rh2 {[%clk 0:00:12]}  Kd1 {[%clk 0:00:07]} 74. Rxe2 {[%clk 0:00:12]}  Kxe2 {[%clk 0:00:08]} 1/2-1/2


[Site "https://www.chess.com"]

[Event "Titled Tuesday Blitz February 15 Early 2022"]
[White "Galyas, Miklos"]
[Black "Dvirnyy, Danyyil"]
[WhiteFideId "707244"]
[BlackFideId "817570"]
[WhiteElo "2551"]
[BlackElo "2716"]
[Result "0-1"]
[Round "05"]
[TimeControl "180+1"]
[Date "2022.02.15"]
[WhiteClock "0:00:04"]
[BlackClock "0:00:11"]

1. c4 {[%clk 0:02:59]}  b6 {[%clk 0:02:57]} 2. Nc3 {[%clk 0:02:57]}  Bb7 {[%clk 0:02:57]} 3. e4 {[%clk 0:02:57]}  c5 {[%clk 0:02:56]} 4. Nge2 {[%clk 0:02:56]}  Nf6 {[%clk 0:02:53]} 5. d3 {[%clk 0:02:55]}  g6 {[%clk 0:02:52]} 6. g3 {[%clk 0:02:55]}  Bg7 {[%clk 0:02:50]} 7. Bg2 {[%clk 0:02:55]}  O-O {[%clk 0:02:49]} 8. O-O {[%clk 0:02:54]}  Nc6 {[%clk 0:02:38]} 9. h3 {[%clk 0:02:54]}  d6 {[%clk 0:02:29]} 10. Be3 {[%clk 0:02:54]}  a6 {[%clk 0:02:18]} 11. d4 {[%clk 0:02:49]}  e5 {[%clk 0:02:15]} 12. d5 {[%clk 0:02:46]}  Nd4 {[%clk 0:02:14]} 13. f4 {[%clk 0:02:46]}  exf4 {[%clk 0:02:08]} 14. gxf4 {[%clk 0:02:43]}  Nxe2+ {[%clk 0:02:08]} 15. Qxe2 {[%clk 0:02:42]}  b5 {[%clk 0:02:06]} 16. e5 {[%clk 0:02:25]}  Nh5 {[%clk 0:02:04]} 17. Ne4 {[%clk 0:02:24]}  bxc4 {[%clk 0:01:56]} 18. Nxd6 {[%clk 0:02:22]}  Ng3 {[%clk 0:01:54]} 19. Qf2 {[%clk 0:02:16]}  Nxf1 {[%clk 0:01:54]} 20. Rxf1 {[%clk 0:02:08]}  Rb8 {[%clk 0:01:47]} 21. Bxc5 {[%clk 0:02:08]}  Ba8 {[%clk 0:01:46]} 22. Nxc4 {[%clk 0:01:54]}  Bxd5 {[%clk 0:01:27]} 23. Rd1 {[%clk 0:01:26]}  Bxc4 {[%clk 0:01:25]} 24. Rxd8 {[%clk 0:01:26]}  Rfxd8 {[%clk 0:01:25]} 25. Bd6 {[%clk 0:01:26]}  Bxa2 {[%clk 0:01:06]} 26. Bxb8 {[%clk 0:01:23]}  Rxb8 {[%clk 0:01:07]} 27. h4 {[%clk 0:01:04]}  Be6 {[%clk 0:01:03]} 28. h5 {[%clk 0:01:04]}  Bf8 {[%clk 0:00:55]} 29. hxg6 {[%clk 0:00:50]}  hxg6 {[%clk 0:00:55]} 30. Be4 {[%clk 0:00:49]}  Rb4 {[%clk 0:00:54]} 31. Qc2 {[%clk 0:00:49]}  a5 {[%clk 0:00:47]} 32. Kg2 {[%clk 0:00:39]}  a4 {[%clk 0:00:45]} 33. Kg3 {[%clk 0:00:34]}  Rc4 {[%clk 0:00:45]} 34. Qd3 {[%clk 0:00:32]}  Rb4 {[%clk 0:00:46]} 35. Qc2 {[%clk 0:00:26]}  Rb3+ {[%clk 0:00:46]} 36. Kg2 {[%clk 0:00:24]}  Re3 {[%clk 0:00:46]} 37. Bxg6 {[%clk 0:00:19]}  Bd5+ {[%clk 0:00:36]} 38. Kf2 {[%clk 0:00:19]}  Rh3 {[%clk 0:00:37]} 39. Qc8 {[%clk 0:00:09]}  Rf3+ {[%clk 0:00:37]} 40. Ke2 {[%clk 0:00:09]}  Rxf4 {[%clk 0:00:28]} 41. Bc2 {[%clk 0:00:06]}  Kg7 {[%clk 0:00:20]} 42. Qd8 {[%clk 0:00:05]}  Bc4+ {[%clk 0:00:17]} 43. Ke3 {[%clk 0:00:05]}  Rg4 {[%clk 0:00:17]} 44. Bf5 {[%clk 0:00:04]}  Rg1 {[%clk 0:00:12]} 45. Kf2 {[%clk 0:00:04]}  Bc5+ {[%clk 0:00:11]} 0-1


[Site "https://www.chess.com"]

[Event "Titled Tuesday Blitz February 15 Early 2022"]
[White "Gan-Erdene, Sugar"]
[Black "Baches Garcia, Guillermo"]
[WhiteFideId "4902980"]
[BlackFideId "2209764"]
[WhiteElo "2256"]
[BlackElo "2457"]
[Result "1-0"]
[Round "05"]
[TimeControl "180+1"]
[Date "2022.02.15"]
[WhiteClock "0:01:09"]
[BlackClock "0:00:03"]

1. e4 {[%clk 0:02:59]}  c5 {[%clk 0:03:00]} 2. Nf3 {[%clk 0:03:00]}  d6 {[%clk 0:03:00]} 3. d4 {[%clk 0:03:00]}  cxd4 {[%clk 0:03:01]} 4. Nxd4 {[%clk 0:03:01]}  Nf6 {[%clk 0:03:01]} 5. Nc3 {[%clk 0:03:01]}  Nc6 {[%clk 0:03:02]} 6. Bg5 {[%clk 0:03:01]}  e6 {[%clk 0:03:02]} 7. Qd2 {[%clk 0:03:01]}  h6 {[%clk 0:03:03]} 8. Bxf6 {[%clk 0:02:49]}  gxf6 {[%clk 0:03:04]} 9. O-O-O {[%clk 0:02:49]}  a6 {[%clk 0:03:04]} 10. Kb1 {[%clk 0:02:49]}  Bd7 {[%clk 0:03:04]} 11. f4 {[%clk 0:02:48]}  Qb6 {[%clk 0:03:03]} 12. Nb3 {[%clk 0:02:45]}  O-O-O {[%clk 0:03:01]} 13. g3 {[%clk 0:02:44]}  Be7 {[%clk 0:02:56]} 14. Bh3 {[%clk 0:02:42]}  h5 {[%clk 0:02:52]} 15. f5 {[%clk 0:02:41]}  h4 {[%clk 0:02:47]} 16. Qe2 {[%clk 0:02:30]}  Rdg8 {[%clk 0:02:27]} 17. fxe6 {[%clk 0:02:26]}  fxe6 {[%clk 0:02:26]} 18. Qc4 {[%clk 0:02:05]}  Qb4 {[%clk 0:01:43]} 19. Bxe6 {[%clk 0:02:01]}  Qxc4 {[%clk 0:01:42]} 20. Bxc4 {[%clk 0:02:02]}  Rg5 {[%clk 0:01:39]} 21. gxh4 {[%clk 0:01:52]}  Rxh4 {[%clk 0:01:37]} 22. a3 {[%clk 0:01:51]}  Ne5 {[%clk 0:01:26]} 23. Be2 {[%clk 0:01:35]}  Rg2 {[%clk 0:01:18]} 24. Nd4 {[%clk 0:01:35]}  Rhxh2 {[%clk 0:01:12]} 25. Rxh2 {[%clk 0:01:36]}  Rxh2 {[%clk 0:01:13]} 26. Nd5 {[%clk 0:01:36]}  Bd8 {[%clk 0:01:08]} 27. Rf1 {[%clk 0:01:36]}  Bc6 {[%clk 0:01:00]} 28. Nxf6 {[%clk 0:01:31]}  Bxf6 {[%clk 0:00:50]} 29. Rxf6 {[%clk 0:01:32]}  Bxe4 {[%clk 0:00:50]} 30. Rxd6 {[%clk 0:01:31]}  Nc6 {[%clk 0:00:41]} 31. Bg4+ {[%clk 0:01:25]}  Kc7 {[%clk 0:00:34]} 32. Rd7+ {[%clk 0:01:24]}  Kb6 {[%clk 0:00:30]} 33. Bf5 {[%clk 0:01:21]}  Bxf5 {[%clk 0:00:06]} 34. Nxf5 {[%clk 0:01:21]}  Ne5 {[%clk 0:00:05]} 35. Rd4 {[%clk 0:01:13]}  Nc6 {[%clk 0:00:05]} 36. Re4 {[%clk 0:01:13]}  a5 {[%clk 0:00:03]} 37. Nd6 {[%clk 0:01:13]}  Kc5 {[%clk 0:00:03]} 38. Nxb7+ {[%clk 0:01:12]}  Kd5 {[%clk 0:00:03]} 39. Rg4 {[%clk 0:01:11]}  a4 {[%clk 0:00:03]} 40. Rg5+ {[%clk 0:01:11]}  Ke4 {[%clk 0:00:03]} 41. Nc5+ {[%clk 0:01:09]}  Ke3 {[%clk 0:00:03]} 42. Nxa4 {[%clk 0:01:09]}  Nd4 {[%clk 0:00:04]} 43. Rg3+ {[%clk 0:01:08]}  Kf2 {[%clk 0:00:03]} 44. Rd3 {[%clk 0:01:08]}  Rh1+ {[%clk 0:00:02]} 45. Ka2 {[%clk 0:01:08]}  Nxc2 {[%clk 0:00:03]} 46. Rd2+ {[%clk 0:01:09]} 1-0


[Site "https://www.chess.com"]

[Event "Titled Tuesday Blitz February 15 Early 2022"]
[White "Gant, Chris J"]
[Black "Fiorito, Fabian"]
[WhiteFideId "403946"]
[BlackFideId "100200"]
[WhiteElo "2184"]
[BlackElo "2395"]
[Result "0-1"]
[Round "05"]
[TimeControl "180+1"]
[Date "2022.02.15"]
[WhiteClock "0:00:18"]
[BlackClock "0:01:01"]

1. d4 {[%clk 0:03:00]}  d5 {[%clk 0:02:59]} 2. Nf3 {[%clk 0:03:00]}  Nf6 {[%clk 0:02:59]} 3. c4 {[%clk 0:02:59]}  c6 {[%clk 0:02:59]} 4. g3 {[%clk 0:02:59]}  Bf5 {[%clk 0:02:58]} 5. Bg2 {[%clk 0:02:59]}  e6 {[%clk 0:02:58]} 6. O-O {[%clk 0:02:59]}  Be7 {[%clk 0:02:59]} 7. Qb3 {[%clk 0:02:56]}  Qb6 {[%clk 0:02:59]} 8. c5 {[%clk 0:02:56]}  Qxb3 {[%clk 0:02:57]} 9. axb3 {[%clk 0:02:56]}  Na6 {[%clk 0:02:53]} 10. Bd2 {[%clk 0:02:47]}  O-O {[%clk 0:02:51]} 11. b4 {[%clk 0:02:46]}  Nc7 {[%clk 0:02:51]} 12. Nc3 {[%clk 0:02:42]}  a6 {[%clk 0:02:51]} 13. Bf4 {[%clk 0:02:38]}  Nb5 {[%clk 0:02:49]} 14. Nxb5 {[%clk 0:02:28]}  axb5 {[%clk 0:02:50]} 15. Ne5 {[%clk 0:02:18]}  h6 {[%clk 0:02:33]} 16. Bd2 {[%clk 0:02:10]}  Rfd8 {[%clk 0:02:29]} 17. e3 {[%clk 0:01:55]}  Ng4 {[%clk 0:02:19]} 18. Nxg4 {[%clk 0:01:52]}  Bxg4 {[%clk 0:02:20]} 19. Ra5 {[%clk 0:01:48]}  Rxa5 {[%clk 0:02:13]} 20. bxa5 {[%clk 0:01:48]}  Ra8 {[%clk 0:02:11]} 21. Ra1 {[%clk 0:01:31]}  Be2 {[%clk 0:02:11]} 22. b4 {[%clk 0:01:30]}  f6 {[%clk 0:02:11]} 23. f3 {[%clk 0:01:29]}  e5 {[%clk 0:02:10]} 24. Kf2 {[%clk 0:01:28]}  Bc4 {[%clk 0:02:10]} 25. Bc3 {[%clk 0:01:26]}  exd4 {[%clk 0:01:39]} 26. exd4 {[%clk 0:01:15]}  Kf7 {[%clk 0:01:36]} 27. Re1 {[%clk 0:01:14]}  f5 {[%clk 0:01:36]} 28. Bh3 {[%clk 0:01:08]}  g6 {[%clk 0:01:36]} 29. f4 {[%clk 0:00:59]}  h5 {[%clk 0:01:36]} 30. Bg2 {[%clk 0:00:58]}  h4 {[%clk 0:01:37]} 31. Bf3 {[%clk 0:00:55]}  Bf6 {[%clk 0:01:30]} 32. Ra1 {[%clk 0:00:51]}  g5 {[%clk 0:01:21]} 33. Bh5+ {[%clk 0:00:34]}  Kg7 {[%clk 0:01:20]} 34. fxg5 {[%clk 0:00:33]}  Bxg5 {[%clk 0:01:19]} 35. Re1 {[%clk 0:00:32]}  Kf6 {[%clk 0:01:19]} 36. Bf3 {[%clk 0:00:29]}  Bd3 {[%clk 0:01:04]} 37. h3 {[%clk 0:00:27]}  hxg3+ {[%clk 0:01:04]} 38. Kxg3 {[%clk 0:00:27]}  Be4 {[%clk 0:01:03]} 39. Bd1 {[%clk 0:00:18]}  Rg8 {[%clk 0:01:01]} 40. Kh2 {[%clk 0:00:18]}  Bf4# {[%clk 0:01:01]} 0-1


[Site "https://www.chess.com"]

[Event "Titled Tuesday Blitz February 15 Early 2022"]
[White "Garriga Cazorla, Pere"]
[Black "Yang, Kaiqi"]
[WhiteFideId "32011601"]
[BlackFideId "8604398"]
[WhiteElo "2458"]
[BlackElo "2373"]
[Result "1-0"]
[Round "05"]
[TimeControl "180+1"]
[Date "2022.02.15"]
[WhiteClock "0:00:26"]
[BlackClock "0:00:02"]

1. d4 {[%clk 0:02:58]}  d5 {[%clk 0:02:59]} 2. c4 {[%clk 0:02:54]}  e6 {[%clk 0:03:00]} 3. Nc3 {[%clk 0:02:54]}  a6 {[%clk 0:03:00]} 4. cxd5 {[%clk 0:02:53]}  exd5 {[%clk 0:03:01]} 5. Nf3 {[%clk 0:02:50]}  Nf6 {[%clk 0:03:01]} 6. Bg5 {[%clk 0:02:48]}  Be6 {[%clk 0:03:01]} 7. Qb3 {[%clk 0:02:49]}  Nbd7 {[%clk 0:02:57]} 8. e3 {[%clk 0:02:43]}  Bd6 {[%clk 0:02:25]} 9. Bd3 {[%clk 0:02:42]}  b5 {[%clk 0:02:13]} 10. Bf4 {[%clk 0:02:26]}  Qe7 {[%clk 0:02:09]} 11. O-O {[%clk 0:02:24]}  O-O {[%clk 0:02:06]} 12. Rac1 {[%clk 0:02:20]}  Rfb8 {[%clk 0:01:36]} 13. Ne2 {[%clk 0:02:08]}  Bg4 {[%clk 0:01:26]} 14. Bxd6 {[%clk 0:01:48]}  Qxd6 {[%clk 0:01:25]} 15. Qc2 {[%clk 0:01:40]}  Rc8 {[%clk 0:01:02]} 16. Qc6 {[%clk 0:01:29]}  Rab8 {[%clk 0:00:39]} 17. Rc2 {[%clk 0:01:28]}  Qxc6 {[%clk 0:00:38]} 18. Rxc6 {[%clk 0:01:29]}  Rb6 {[%clk 0:00:38]} 19. Rfc1 {[%clk 0:01:26]}  Rxc6 {[%clk 0:00:38]} 20. Rxc6 {[%clk 0:01:27]}  Nb8 {[%clk 0:00:37]} 21. Rc2 {[%clk 0:01:26]}  Nfd7 {[%clk 0:00:29]} 22. Nf4 {[%clk 0:01:19]}  Be6 {[%clk 0:00:28]} 23. Ng5 {[%clk 0:01:01]}  Nf8 {[%clk 0:00:28]} 24. b3 {[%clk 0:00:56]}  h6 {[%clk 0:00:27]} 25. Nf3 {[%clk 0:00:56]}  Nfd7 {[%clk 0:00:24]} 26. a4 {[%clk 0:00:57]}  bxa4 {[%clk 0:00:19]} 27. bxa4 {[%clk 0:00:58]}  c5 {[%clk 0:00:20]} 28. dxc5 {[%clk 0:00:55]}  Rxc5 {[%clk 0:00:21]} 29. Nd4 {[%clk 0:00:51]}  Rxc2 {[%clk 0:00:19]} 30. Bxc2 {[%clk 0:00:52]}  Nc5 {[%clk 0:00:19]} 31. Kf1 {[%clk 0:00:52]}  Kf8 {[%clk 0:00:14]} 32. Ke1 {[%clk 0:00:50]}  Ke7 {[%clk 0:00:14]} 33. Kd2 {[%clk 0:00:50]}  Kd6 {[%clk 0:00:14]} 34. Kc3 {[%clk 0:00:48]}  Nc6 {[%clk 0:00:14]} 35. Nxc6 {[%clk 0:00:47]}  Kxc6 {[%clk 0:00:15]} 36. Kb4 {[%clk 0:00:45]}  Kb6 {[%clk 0:00:15]} 37. a5+ {[%clk 0:00:44]}  Kc6 {[%clk 0:00:15]} 38. Ne2 {[%clk 0:00:44]}  Bc8 {[%clk 0:00:12]} 39. Nd4+ {[%clk 0:00:43]}  Kd6 {[%clk 0:00:12]} 40. f3 {[%clk 0:00:43]}  Ne6 {[%clk 0:00:12]} 41. Nf5+ {[%clk 0:00:42]}  Kc6 {[%clk 0:00:07]} 42. Ne7+ {[%clk 0:00:35]}  Kd7 {[%clk 0:00:06]} 43. Nxd5 {[%clk 0:00:34]}  Kd6 {[%clk 0:00:06]} 44. Nc3 {[%clk 0:00:31]}  Bb7 {[%clk 0:00:06]} 45. Be4 {[%clk 0:00:31]}  Bc8 {[%clk 0:00:05]} 46. Bd5 {[%clk 0:00:30]}  Nc5 {[%clk 0:00:05]} 47. Ne4+ {[%clk 0:00:27]}  Nxe4 {[%clk 0:00:05]} 48. Bxe4 {[%clk 0:00:28]}  f6 {[%clk 0:00:05]} 49. Kc4 {[%clk 0:00:27]}  g5 {[%clk 0:00:05]} 50. Kd4 {[%clk 0:00:26]}  Bd7 {[%clk 0:00:04]} 51. Bd3 {[%clk 0:00:25]}  Bc8 {[%clk 0:00:05]} 52. g3 {[%clk 0:00:25]}  Bb7 {[%clk 0:00:04]} 53. e4 {[%clk 0:00:24]}  Bc8 {[%clk 0:00:04]} 54. f4 {[%clk 0:00:25]}  Bb7 {[%clk 0:00:04]} 55. Bc4 {[%clk 0:00:24]}  Bc8 {[%clk 0:00:04]} 56. e5+ {[%clk 0:00:25]}  fxe5+ {[%clk 0:00:05]} 57. fxe5+ {[%clk 0:00:25]}  Ke7 {[%clk 0:00:06]} 58. Kc5 {[%clk 0:00:25]}  h5 {[%clk 0:00:04]} 59. Kb6 {[%clk 0:00:26]}  h4 {[%clk 0:00:04]} 60. gxh4 {[%clk 0:00:25]}  gxh4 {[%clk 0:00:04]} 61. Bxa6 {[%clk 0:00:26]}  Bf5 {[%clk 0:00:03]} 62. Bc4 {[%clk 0:00:26]}  Be4 {[%clk 0:00:04]} 63. a6 {[%clk 0:00:26]}  Kd7 {[%clk 0:00:02]} 64. Kc5 {[%clk 0:00:26]}  Kc7 {[%clk 0:00:02]} 65. e6 {[%clk 0:00:26]}  Kd8 {[%clk 0:00:02]} 66. Kd6 {[%clk 0:00:26]}  Ke8 {[%clk 0:00:02]} 67. Bb5+ {[%clk 0:00:26]} 1-0


[Site "https://www.chess.com"]

[Event "Titled Tuesday Blitz February 15 Early 2022"]
[White "Glidzhain, Gor"]
[Black "Mohammed, Dilshad"]
[WhiteFideId "24109932"]
[BlackFideId "5050421"]
[WhiteElo "2229"]
[BlackElo "2153"]
[Result "1-0"]
[Round "05"]
[TimeControl "180+1"]
[Date "2022.02.15"]
[WhiteClock "0:00:15"]
[BlackClock "0:00:01"]

1. e4 {[%clk 0:03:00]}  e5 {[%clk 0:02:59]} 2. Nf3 {[%clk 0:03:00]}  Nc6 {[%clk 0:02:59]} 3. Bc4 {[%clk 0:03:00]}  Nf6 {[%clk 0:02:59]} 4. d3 {[%clk 0:02:58]}  Be7 {[%clk 0:02:59]} 5. O-O {[%clk 0:02:59]}  O-O {[%clk 0:02:59]} 6. Re1 {[%clk 0:02:59]}  d6 {[%clk 0:02:59]} 7. h3 {[%clk 0:02:59]}  Na5 {[%clk 0:02:59]} 8. Bb3 {[%clk 0:02:59]}  Nxb3 {[%clk 0:02:59]} 9. axb3 {[%clk 0:03:00]}  c5 {[%clk 0:02:57]} 10. c4 {[%clk 0:03:00]}  Ne8 {[%clk 0:02:45]} 11. Nc3 {[%clk 0:03:00]}  f5 {[%clk 0:02:45]} 12. Nd5 {[%clk 0:02:57]}  f4 {[%clk 0:02:44]} 13. b4 {[%clk 0:02:57]}  b6 {[%clk 0:02:40]} 14. bxc5 {[%clk 0:02:56]}  bxc5 {[%clk 0:02:39]} 15. b4 {[%clk 0:02:56]}  cxb4 {[%clk 0:02:37]} 16. Nxb4 {[%clk 0:02:57]}  Nc7 {[%clk 0:02:22]} 17. Ba3 {[%clk 0:02:52]}  Qe8 {[%clk 0:02:06]} 18. Kf1 {[%clk 0:02:24]}  Rf6 {[%clk 0:02:04]} 19. d4 {[%clk 0:02:20]}  Rg6 {[%clk 0:01:58]} 20. Nd5 {[%clk 0:02:17]}  Nxd5 {[%clk 0:01:48]} 21. exd5 {[%clk 0:02:18]}  Ba6 {[%clk 0:01:07]} 22. dxe5 {[%clk 0:02:14]}  Bxc4+ {[%clk 0:01:07]} 23. Kg1 {[%clk 0:02:14]}  Qd7 {[%clk 0:00:54]} 24. Kh1 {[%clk 0:01:53]}  Qb5 {[%clk 0:00:47]} 25. exd6 {[%clk 0:01:17]}  Bxd6 {[%clk 0:00:45]} 26. Bxd6 {[%clk 0:01:14]}  Rxd6 {[%clk 0:00:46]} 27. Qd4 {[%clk 0:01:11]}  Rxd5 {[%clk 0:00:39]} 28. Qxf4 {[%clk 0:01:09]}  Rf8 {[%clk 0:00:35]} 29. Qg4 {[%clk 0:01:04]}  Rd6 {[%clk 0:00:22]} 30. Reb1 {[%clk 0:00:35]}  Qd5 {[%clk 0:00:17]} 31. Rd1 {[%clk 0:00:15]}  Qxd1+ {[%clk 0:00:12]} 32. Rxd1 {[%clk 0:00:16]}  Rxd1+ {[%clk 0:00:12]} 33. Kh2 {[%clk 0:00:17]}  Bf7 {[%clk 0:00:05]} 34. Ng5 {[%clk 0:00:17]}  Rd6 {[%clk 0:00:04]} 35. f4 {[%clk 0:00:14]}  Bg6 {[%clk 0:00:03]} 36. Qg3 {[%clk 0:00:14]}  Rdf6 {[%clk 0:00:02]} 37. Qb3+ {[%clk 0:00:14]}  Kh8 {[%clk 0:00:02]} 38. g3 {[%clk 0:00:15]}  h6 {[%clk 0:00:03]} 39. Nf3 {[%clk 0:00:14]}  Re8 {[%clk 0:00:03]} 40. Ne5 {[%clk 0:00:14]}  Bh7 {[%clk 0:00:01]} 41. h4 {[%clk 0:00:15]} 1-0


[Site "https://www.chess.com"]

[Event "Titled Tuesday Blitz February 15 Early 2022"]
[White "Goltseva, Ekaterina"]
[Black "Mikhnenko, Alexander"]
[WhiteFideId "24173770"]
[BlackFideId "34143014"]
[WhiteElo "2140"]
[BlackElo "2140"]
[Result "1-0"]
[Round "05"]
[TimeControl "180+1"]
[Date "2022.02.15"]
[WhiteClock "0:00:14"]
[BlackClock "0:00:13"]

1. d4 {[%clk 0:02:56]}  Nf6 {[%clk 0:02:59]} 2. c4 {[%clk 0:02:56]}  e6 {[%clk 0:02:59]} 3. Nc3 {[%clk 0:02:56]}  Bb4 {[%clk 0:02:58]} 4. e3 {[%clk 0:02:55]}  O-O {[%clk 0:02:52]} 5. Bd2 {[%clk 0:02:56]}  d5 {[%clk 0:02:52]} 6. Nf3 {[%clk 0:02:52]}  dxc4 {[%clk 0:02:49]} 7. Bxc4 {[%clk 0:02:52]}  a6 {[%clk 0:02:49]} 8. O-O {[%clk 0:02:52]}  b5 {[%clk 0:02:49]} 9. Bd3 {[%clk 0:02:52]}  Bb7 {[%clk 0:02:49]} 10. Ne4 {[%clk 0:02:49]}  Bxd2 {[%clk 0:02:43]} 11. Nfxd2 {[%clk 0:02:50]}  Nxe4 {[%clk 0:02:42]} 12. Nxe4 {[%clk 0:02:50]}  Nd7 {[%clk 0:02:41]} 13. Qc2 {[%clk 0:02:47]}  Rc8 {[%clk 0:02:40]} 14. Nc5 {[%clk 0:02:43]}  Nxc5 {[%clk 0:02:40]} 15. Qxc5 {[%clk 0:02:44]}  Qd5 {[%clk 0:02:40]} 16. Qxd5 {[%clk 0:02:39]}  Bxd5 {[%clk 0:02:40]} 17. Rfc1 {[%clk 0:02:37]}  f5 {[%clk 0:02:35]} 18. a4 {[%clk 0:02:27]}  c6 {[%clk 0:02:34]} 19. axb5 {[%clk 0:02:26]}  axb5 {[%clk 0:02:34]} 20. Ra7 {[%clk 0:02:25]}  g5 {[%clk 0:02:33]} 21. f3 {[%clk 0:02:21]}  Rb8 {[%clk 0:02:09]} 22. b4 {[%clk 0:02:20]}  Ra8 {[%clk 0:02:05]} 23. Rca1 {[%clk 0:02:19]}  Rxa7 {[%clk 0:02:05]} 24. Rxa7 {[%clk 0:02:19]}  Rb8 {[%clk 0:02:04]} 25. Kf2 {[%clk 0:02:16]}  h5 {[%clk 0:02:03]} 26. e4 {[%clk 0:02:08]}  fxe4 {[%clk 0:02:00]} 27. fxe4 {[%clk 0:02:07]}  Bc4 {[%clk 0:02:01]} 28. Ke3 {[%clk 0:01:59]}  Rf8 {[%clk 0:01:45]} 29. Bxc4 {[%clk 0:01:02]}  bxc4 {[%clk 0:01:46]} 30. Rc7 {[%clk 0:01:02]}  Rf1 {[%clk 0:01:45]} 31. Rxc6 {[%clk 0:01:02]}  Re1+ {[%clk 0:01:43]} 32. Kf3 {[%clk 0:01:01]}  Rf1+ {[%clk 0:01:37]} 33. Ke2 {[%clk 0:00:58]}  Rb1 {[%clk 0:01:35]} 34. Rxe6 {[%clk 0:00:40]}  Rxb4 {[%clk 0:01:29]} 35. Rg6+ {[%clk 0:00:39]}  Kf7 {[%clk 0:01:27]} 36. Rxg5 {[%clk 0:00:39]}  Rb2+ {[%clk 0:01:16]} 37. Kf3 {[%clk 0:00:39]}  Rd2 {[%clk 0:01:10]} 38. Ke3 {[%clk 0:00:38]}  Rd3+ {[%clk 0:01:10]} 39. Kf4 {[%clk 0:00:38]}  Rxd4 {[%clk 0:01:07]} 40. Rxh5 {[%clk 0:00:38]}  c3 {[%clk 0:01:04]} 41. Rc5 {[%clk 0:00:36]}  Rd2 {[%clk 0:01:04]} 42. Kf3 {[%clk 0:00:28]}  c2 {[%clk 0:01:03]} 43. h4 {[%clk 0:00:26]}  Ke6 {[%clk 0:01:01]} 44. g4 {[%clk 0:00:24]}  Kd6 {[%clk 0:01:01]} 45. Rc8 {[%clk 0:00:24]}  Kd7 {[%clk 0:01:00]} 46. Rc4 {[%clk 0:00:23]}  Rd3+ {[%clk 0:00:41]} 47. Kf4 {[%clk 0:00:22]}  Rd2 {[%clk 0:00:32]} 48. h5 {[%clk 0:00:22]}  Ke6 {[%clk 0:00:33]} 49. h6 {[%clk 0:00:20]}  Kf7 {[%clk 0:00:33]} 50. Kg5 {[%clk 0:00:19]}  Re2 {[%clk 0:00:23]} 51. Rc7+ {[%clk 0:00:16]}  Ke6 {[%clk 0:00:22]} 52. h7 {[%clk 0:00:16]}  Rh2 {[%clk 0:00:22]} 53. Kg6 {[%clk 0:00:16]}  Rh4 {[%clk 0:00:13]} 54. g5 {[%clk 0:00:14]} 1-0


[Site "https://www.chess.com"]